bitfinex/quotes_BTCUSD_20220304
["timestamp","ask_amount","ask_price","bid_price","bid_amount"]
[1646428615845,0.004,39351.0,39347.0,0.26629431]
[1646428616244,0.004,39351.0,39347.0,0.26129431]
[1646428616711,0.15,39353.0,39347.0,0.26129431]
[1646428616905,0.15,39353.0,39347.0,0.39584181]
[1646428617110,0.15,39353.0,39344.0,0.32168795]
[1646428617507,0.23812407,39354.0,39344.0,0.32168795]
[1646428617508,0.15,39350.0,39344.0,0.32168795]
[1646428617708,0.05,39350.0,39344.0,0.32168795]
[1646428617908,0.15,39346.0,39344.0,0.32168795]
[1646428618309,0.43781721,39346.0,39344.0,0.32168795]
[1646428618908,0.48781721,39346.0,39344.0,0.32168795]
[1646428619111,0.69035321,39346.0,39344.0,0.30268795]
[1646428619410,0.1,39345.0,39344.0,0.18700282]
[1646428619811,0.1467,39345.0,39344.0,0.18700282]
[1646428620009,0.0467,39345.0,39344.0,0.18700282]
[1646428620250,0.17977395,39345.0,39344.0,0.18700282]
[1646428620451,0.1467,39345.0,39344.0,0.18700282]
[1646428621751,0.0467,39345.0,39344.0,0.18700282]
[1646428621967,0.004,39349.0,39344.0,0.18200282]
[1646428622354,0.004,39349.0,39345.0,0.14524809]
[1646428622553,0.004,39349.0,39348.0,0.56333533]
[1646428622754,0.15,39355.0,39348.0,0.5070018]
[1646428622953,0.26579513,39358.0,39348.0,0.5070018]
[1646428622954,0.01490789,39357.0,39348.0,0.5070018]
[1646428623153,0.01490789,39357.0,39349.0,0.3]
[1646428623355,0.01490789,39357.0,39348.0,0.5070018]
[1646428623356,0.01592243,39356.0,39348.0,0.5070018]
[1646428623553,0.003,39359.0,39355.0,0.13224848]
[1646428623755,0.003,39359.0,39354.0,0.22676952]
[1646428624193,0.003,39359.0,39354.0,0.48553613]
[1646428624194,0.26294348,39359.0,39354.0,0.48553613]
[1646428624796,0.25994348,39359.0,39356.0,0.12631228]
[1646428624994,0.25994348,39360.0,39356.0,0.12631228]
[1646428625195,0.92819179,39362.0,39356.0,0.12631228]
[1646428625196,0.25994348,39361.0,39356.0,0.12631228]
[1646428625997,0.25994348,39361.0,39352.0,0.001]
[1646428626200,0.152,39362.0,39352.0,0.001]
[1646428626201,0.0999,39356.0,39352.0,0.001]
[1646428626597,0.0999,39356.0,39343.0,1.02966]
[1646428626795,0.0999,39356.0,39345.0,0.113588]
[1646428626996,0.0999,39356.0,39347.0,0.25438575]
[1646428627500,0.0467,39359.0,39351.0,0.27468125]
[1646428627501,0.25994348,39358.0,39351.0,0.27468125]
[1646428627743,0.0999,39354.0,39351.0,0.27468125]
[1646428627942,0.0999,39354.0,39353.0,0.14033041]
[1646428628142,0.0999,39354.0,39351.0,0.27468125]
[1646428628342,0.0999,39354.0,39351.0,0.26968125]
[1646428628545,0.0999,39354.0,39352.0,0.372715]
[1646428628742,0.0999,39354.0,39351.0,0.26968125]
[1646428628942,0.0999,39354.0,39351.0,0.26179829]
[1646428629144,0.0999,39354.0,39353.0,0.12355551]
[1646428629349,0.25994348,39359.0,39354.0,0.372715]
[1646428629350,0.20790064,39359.0,39354.0,0.372715]
[1646428629549,0.30780064,39361.0,39354.0,0.372715]
[1646428629745,0.20790064,39361.0,39358.0,0.26146509]
[1646428629949,0.20790064,39361.0,39359.0,0.372715]
[1646428630150,0.20790064,39362.0,39360.0,0.43909813]
[1646428630349,0.20790064,39362.0,39361.0,0.372715]
[1646428630646,0.20790064,39362.0,39361.0,0.397975]
[1646428630848,0.25994348,39366.0,39361.0,0.02526]
[1646428631047,0.25994348,39366.0,39362.0,0.02526]
[1646428631508,0.36373687,39370.0,39364.0,0.397975]
[1646428631509,0.24314348,39367.0,39364.0,0.397975]
[1646428631706,0.31166863,39371.0,39366.0,0.372715]
[1646428631901,0.31166863,39371.0,39364.0,0.05]
[1646428631902,0.31166863,39372.0,39364.0,0.05]
[1646428632102,0.31166863,39372.0,39365.0,0.6223197]
[1646428632302,0.31166863,39373.0,39371.0,0.372715]
[1646428632502,0.36373687,39375.0,39372.0,0.64720343]
[1646428632503,0.31166863,39375.0,39372.0,0.64720343]
[1646428632706,0.31166863,39376.0,39375.0,0.392975]
[1646428632906,0.16405517,39377.0,39375.0,0.17146681]
[1646428632907,0.31166863,39377.0,39375.0,0.17146681]
[1646428633102,0.16405517,39385.0,39375.0,0.22146681]
[1646428633103,0.31166863,39379.0,39375.0,0.22146681]
[1646428633303,0.31166863,39378.0,39377.0,0.372715]
[1646428633601,0.31466863,39378.0,39377.0,0.372715]
[1646428633803,0.003,39378.0,39377.0,0.422715]
[1646428634002,0.003,39378.0,39377.0,0.442975]
[1646428634902,0.31166863,39380.0,39379.0,0.15303385]
[1646428635156,0.31166863,39381.0,39379.0,0.15303385]
[1646428635362,0.31166863,39381.0,39380.0,0.05]
[1646428635557,0.31166863,39383.0,39380.0,0.05]
[1646428635956,0.31166863,39383.0,39381.0,0.372872]
[1646428636357,0.31166863,39383.0,39380.0,0.05]
[1646428636960,0.31166863,39384.0,39380.0,0.05]
[1646428637159,0.31166863,39384.0,39383.0,0.24245546]
[1646428637461,0.36373687,39386.0,39376.0,0.052]
[1646428637462,0.31166863,39385.0,39376.0,0.052]
[1646428637757,0.31166863,39385.0,39377.0,0.436408]
[1646428637960,0.31166863,39385.0,39378.0,0.02526]
[1646428638162,0.002,39386.0,39380.0,0.15763959]
[1646428638163,0.31166863,39384.0,39380.0,0.15763959]
[1646428638358,0.002,39386.0,39379.0,0.31300482]
[1646428638359,0.31166863,39385.0,39379.0,0.31300482]
[1646428638559,0.002,39386.0,39379.0,0.31300482]
[1646428638759,0.31166863,39387.0,39385.0,0.26104837]
[1646428638994,0.221331,39387.0,39378.0,0.05]
[1646428639197,0.53299963,39385.0,39378.0,0.05]
[1646428639393,0.31166863,39385.0,39374.0,0.12678442]
[1646428639593,0.31166863,39384.0,39372.0,0.05]
[1646428639894,0.31166863,39383.0,39372.0,0.05]
[1646428640097,0.2359105,39378.0,39372.0,0.05]
[1646428640296,0.2359105,39378.0,39371.0,0.05]
[1646428640700,0.221331,39377.0,39364.0,0.2311]
[1646428640901,0.57267885,39377.0,39364.0,0.2311]
[1646428641096,0.31166863,39376.0,39358.0,0.0517]
[1646428641298,0.15,39370.0,39358.0,0.0517]
[1646428641500,0.27992044,39367.0,39359.0,0.003]
[1646428641695,0.268031,39366.0,39359.0,0.003]
[1646428642093,0.0467,39366.0,39360.0,0.24839581]
[1646428642297,0.221331,39365.0,39360.0,0.24839581]
[1646428642494,0.0467,39366.0,39360.0,0.24839581]
[1646428642749,0.221331,39366.0,39360.0,0.18447923]
[1646428642946,0.1967,39369.0,39360.0,0.33044247]
[1646428643345,0.0467,39369.0,39360.0,0.18447923]
[1646428643546,0.0467,39369.0,39358.0,0.0517]
[1646428643846,0.0467,39369.0,39363.0,0.30791367]
[1646428643847,0.01165522,39368.0,39363.0,0.30791367]
[1646428648283,0.25972111,39377.0,39371.0,0.05]
[1646428648679,0.25972111,39377.0,39369.0,0.05]
[1646428648880,0.25972111,39376.0,39369.0,0.05]
[1646428649283,0.28147758,39375.0,39369.0,0.05]
[1646428649480,0.221331,39374.0,39369.0,0.05]
[1646428649682,0.221331,39374.0,39367.0,0.05]
[1646428649884,0.371331,39373.0,39366.0,0.002]
[1646428650159,0.221331,39371.0,39366.0,0.002]
[1646428650360,0.15,39370.0,39366.0,0.002]
[1646428650556,0.221331,39369.0,39366.0,0.002]
[1646428650755,0.00105174,39365.0,39358.0,0.22884919]
[1646428650960,0.00105174,39365.0,39359.0,0.12998494]
[1646428651657,0.00105174,39365.0,39358.0,0.22884919]
[1646428651858,0.00105174,39365.0,39363.0,0.000119]
[1646428652062,0.221331,39364.0,39363.0,0.000119]
[1646428652660,0.221331,39364.0,39358.0,0.05]
[1646428652858,0.00105174,39365.0,39357.0,0.37076945]
[1646428653057,0.00105174,39365.0,39357.0,0.32076945]
[1646428653258,0.00105174,39365.0,39358.0,0.063568]
[1646428653880,0.00105174,39365.0,39360.0,0.13225477]
[1646428654283,0.00105174,39365.0,39360.0,0.18225477]
[1646428654486,0.00105174,39365.0,39361.0,0.23266502]
[1646428656284,0.00105174,39365.0,39364.0,0.25268675]
[1646428656685,0.00105174,39365.0,39361.0,0.23266502]
[1646428656883,0.00105174,39365.0,39362.0,0.372872]
[1646428656884,0.01702218,39365.0,39362.0,0.372872]
[1646428657083,0.01056328,39364.0,39362.0,0.372872]
[1646428657284,0.00105174,39365.0,39362.0,0.372872]
[1646428657484,0.01054933,39363.0,39362.0,0.372872]
[1646428657735,0.00105174,39365.0,39361.0,0.23266502]
[1646428657934,0.00105174,39365.0,39362.0,0.372872]
[1646428658134,0.00105174,39365.0,39362.0,0.436422]
[1646428658334,0.00105174,39365.0,39364.0,1.150172]
[1646428658738,0.00105174,39365.0,39364.0,1.37811834]
[1646428658935,0.00105174,39365.0,39364.0,1.66507594]
[1646428662887,0.00105174,39365.0,39364.0,1.551133]
[1646428663287,0.00105174,39365.0,39364.0,0.47443416]
[1646428663689,0.00105174,39365.0,39364.0,0.422973]
[1646428664692,0.00105174,39365.0,39364.0,0.05]
[1646428664890,0.00105174,39365.0,39361.0,0.23266502]
[1646428665139,0.00105174,39365.0,39356.0,0.2449]
[1646428665334,0.00105174,39365.0,39357.0,0.372973]
[1646428665534,0.00105174,39365.0,39355.0,0.131127]
[1646428665735,0.24531685,39365.0,39360.0,0.11746799]
[1646428666134,0.24531685,39365.0,39362.0,0.22022969]
[1646428666336,0.00105174,39365.0,39362.0,0.22022969]
[1646428668989,0.00105174,39365.0,39362.0,0.28378969]
[1646428669189,0.00105174,39365.0,39363.0,0.372973]
[1646428669382,0.01413792,39364.0,39363.0,0.372973]
[1646428669582,0.00105174,39365.0,39363.0,0.372973]
[1646428670581,0.00105174,39365.0,39364.0,0.05543649]
[1646428670781,0.00105174,39365.0,39364.0,0.42840949]
[1646428670981,0.26092197,39365.0,39364.0,0.372973]
[1646428671180,0.26092197,39365.0,39363.0,0.372973]
[1646428671986,0.26092197,39365.0,39362.0,0.22022969]
[1646428672286,0.25987023,39364.0,39363.0,0.372973]
[1646428672488,0.26092197,39365.0,39363.0,0.372973]
[1646428672731,0.25987023,39364.0,39363.0,0.436531]
[1646428673132,0.26092197,39365.0,39363.0,0.436531]
[1646428673333,0.25987023,39364.0,39363.0,0.436531]
[1646428673531,0.26092197,39365.0,39363.0,0.436531]
[1646428673732,0.25987023,39364.0,39363.0,0.436531]
[1646428673933,0.26092197,39365.0,39363.0,0.436531]
[1646428674136,0.26092197,39365.0,39363.0,0.486531]
[1646428674440,0.00105174,39365.0,39363.0,0.486531]
[1646428674634,0.00105174,39365.0,39364.0,0.7773]
[1646428674832,0.00105174,39365.0,39364.0,1.450273]
[1646428675234,0.00105174,39365.0,39364.0,1.150273]
[1646428677891,0.00105174,39365.0,39364.0,1.575533]
[1646428678290,0.00105174,39365.0,39364.0,1.622233]
[1646428679694,0.31166863,39374.0,39366.0,1.277339]
[1646428679892,0.31166863,39374.0,39372.0,1.150273]
[1646428679893,0.01374778,39373.0,39372.0,1.150273]
[1646428680133,0.01374778,39373.0,39372.0,0.372973]
[1646428680134,0.01444852,39373.0,39372.0,0.372973]
[1646428680338,0.31166863,39374.0,39372.0,0.422973]
[1646428680733,0.31166863,39375.0,39372.0,0.422973]
[1646428681134,0.31166863,39375.0,39374.0,0.372973]
[1646428681736,0.36373687,39377.0,39373.0,0.29373829]
[1646428681737,0.36373687,39376.0,39373.0,0.113539]
[1646428681935,0.36373687,39374.0,39373.0,0.063539]
[1646428682135,0.36373687,39374.0,39369.0,0.177069]
[1646428682342,0.36373687,39374.0,39370.0,0.372973]
[1646428682343,0.31166537,39372.0,39370.0,0.372973]
[1646428682737,0.32968102,39371.0,39370.0,0.66200006]
[1646428683036,0.32968102,39371.0,39370.0,0.19945926]
[1646428683438,0.94134639,39371.0,39353.0,0.20780674]
[1646428683639,0.94134639,39371.0,39364.0,0.003]
[1646428683640,0.372936,39367.0,39364.0,0.003]
[1646428683883,0.36373687,39367.0,39364.0,0.003]
[1646428684081,0.15,39367.0,39364.0,0.003]
[1646428684381,0.27836621,39365.0,39364.0,0.003]
[1646428684783,1.16503908,39365.0,39353.0,1.459]
[1646428685086,0.36373687,39363.0,39353.0,1.459]
[1646428685281,0.36373687,39363.0,39353.0,0.294774]
[1646428685482,0.15,39361.0,39356.0,0.16062663]
[1646428685682,0.15,39361.0,39357.0,0.372936]
[1646428685884,0.36373687,39364.0,39357.0,0.372936]
[1646428686083,0.36373687,39364.0,39358.0,0.372936]
[1646428686284,0.64210308,39365.0,39358.0,0.372936]
[1646428686683,0.64210308,39365.0,39359.0,0.372936]
[1646428686886,0.64210308,39365.0,39361.0,0.25951544]
[1646428687087,0.27836621,39365.0,39361.0,0.25951544]
[1646428687486,0.27836621,39365.0,39355.0,0.7773]
[1646428687736,0.27836621,39365.0,39360.0,0.063565]
[1646428687930,0.15,39364.0,39360.0,0.063565]
[1646428688532,0.15,39364.0,39361.0,0.372936]
[1646428688731,0.64210308,39365.0,39360.0,0.42524915]
[1646428688932,0.15,39364.0,39360.0,0.42524915]
[1646428689133,0.15,39361.0,39360.0,0.436501]
[1646428689532,0.36373687,39364.0,39360.0,0.063565]
[1646428689733,0.15,39361.0,39360.0,0.063565]
[1646428690236,0.15,39361.0,39360.0,0.436501]
[1646428690632,0.15,39361.0,39360.0,0.063565]
[1646428691489,0.15,39361.0,39358.0,0.05]
[1646428691692,0.4620258,39361.0,39356.0,0.002]
[1646428691887,0.4620258,39361.0,39357.0,0.372936]
[1646428692288,0.3120258,39361.0,39357.0,0.372936]
[1646428692488,0.4620258,39361.0,39359.0,0.26959712]
[1646428692689,0.3120258,39362.0,39359.0,0.26959712]
[1646428692892,0.3120258,39362.0,39360.0,0.05406706]
[1646428693089,0.0120258,39363.0,39361.0,0.372936]
[1646428693588,0.15,39362.0,39361.0,0.372936]
[1646428693788,0.15,39362.0,39360.0,0.05406706]
[1646428693989,0.15,39362.0,39361.0,0.372936]
[1646428694389,0.0120258,39363.0,39360.0,0.05406706]
[1646428694589,0.15,39362.0,39361.0,0.063561]
[1646428694790,0.15,39362.0,39358.0,0.372936]
[1646428694994,0.15,39362.0,39351.0,0.717743]
[1646428695254,0.15,39362.0,39356.0,0.372936]
[1646428695460,0.51373687,39362.0,39356.0,0.372936]
[1646428695655,0.39077077,39362.0,39356.0,0.75373917]
[1646428696053,0.15,39361.0,39356.0,0.75373917]
[1646428696452,0.13977077,39362.0,39358.0,0.372936]
[1646428696653,0.13977077,39362.0,39357.0,0.372936]
[1646428696953,0.13977077,39362.0,39358.0,0.372936]
[1646428697156,0.50350764,39362.0,39357.0,0.372936]
[1646428697653,0.13977077,39362.0,39357.0,0.374936]
[1646428697955,0.372936,39361.0,39357.0,0.002]
[1646428698159,0.36373687,39360.0,39357.0,0.002]
[1646428698355,0.78337287,39359.0,39357.0,0.002]
[1646428698993,0.78337287,39359.0,39347.0,1.0278]
[1646428698994,0.32298862,39352.0,39349.0,0.20468681]
[1646428699193,0.32298862,39352.0,39350.0,0.372936]
[1646428699695,0.002,39354.0,39350.0,0.422936]
[1646428699892,0.002,39354.0,39351.0,0.372936]
[1646428700397,0.002,39354.0,39352.0,0.372936]
[1646428700798,0.002,39354.0,39353.0,0.21487846]
[1646428700992,0.36373687,39360.0,39353.0,0.21487846]
[1646428701193,0.31218591,39359.0,39357.0,0.063565]
[1646428701397,0.36373687,39361.0,39357.0,0.063565]
[1646428701398,0.31218591,39361.0,39357.0,0.063565]
[1646428701593,0.31218591,39361.0,39354.0,1.0773]
[1646428701594,0.31218591,39362.0,39354.0,1.0773]
[1646428701793,0.31218591,39361.0,39354.0,1.1273]
[1646428701994,0.31218591,39362.0,39354.0,1.1273]
[1646428702194,0.31218591,39363.0,39357.0,0.05670891]
[1646428702497,0.31218591,39363.0,39354.0,1.1273]
[1646428702498,0.31218591,39363.0,39358.0,0.127123]
[1646428702735,0.2615335,39364.0,39358.0,0.127123]
[1646428702736,0.31218591,39361.0,39358.0,0.127123]
[1646428702936,0.31218591,39361.0,39354.0,0.05]
[1646428703136,0.31218591,39361.0,39358.0,0.26250961]
[1646428703341,0.31218591,39361.0,39357.0,0.372936]
[1646428703535,0.31218591,39361.0,39357.0,0.436507]
[1646428703736,0.31218591,39362.0,39357.0,0.486507]
[1646428703937,0.31218591,39362.0,39357.0,0.113571]
[1646428704336,0.31218591,39362.0,39359.0,0.26971359]
[1646428704538,0.31218591,39361.0,39357.0,0.113571]
[1646428704738,0.31218591,39361.0,39357.0,0.05]
[1646428705737,0.31218591,39361.0,39358.0,0.372936]
[1646428706890,0.06118591,39361.0,39358.0,0.27057299]
[1646428709189,0.06118591,39361.0,39357.0,0.11357]
[1646428709390,0.06118591,39361.0,39357.0,0.05]
[1646428709793,0.06118591,39361.0,39357.0,0.113571]
[1646428710238,0.06118591,39361.0,39359.0,0.2308933]
[1646428710440,0.25539909,39362.0,39358.0,0.372936]
[1646428710640,0.25539909,39362.0,39357.0,0.113571]
[1646428710841,0.01131403,39361.0,39358.0,0.372936]
[1646428711040,0.01404512,39360.0,39357.0,0.113571]
[1646428711245,0.25539909,39362.0,39358.0,0.372936]
[1646428711640,0.003,39362.0,39358.0,0.372936]
[1646428711840,0.003,39362.0,39361.0,0.2477534]
[1646428712042,0.003,39362.0,39358.0,0.372936]
[1646428712442,0.003,39362.0,39357.0,0.113569]
[1646428712940,0.003,39362.0,39360.0,0.21358957]
[1646428712941,0.27203088,39362.0,39360.0,0.21358957]
[1646428713540,0.003,39362.0,39360.0,0.21358957]
[1646428713990,0.36373687,39364.0,39360.0,0.21358957]
[1646428714185,0.36373687,39364.0,39362.0,0.14202075]
[1646428714384,0.36373687,39364.0,39360.0,0.21358957]
[1646428714584,0.26344108,39364.0,39360.0,0.21358957]
[1646428714785,0.31233954,39363.0,39360.0,0.21358957]
[1646428714985,0.31233954,39362.0,39357.0,0.11357]
[1646428715385,0.31233954,39362.0,39360.0,0.1358581]
[1646428715585,0.31233954,39362.0,39357.0,0.11357]
[1646428715989,0.31233954,39362.0,39361.0,0.28159482]
[1646428716389,0.31533954,39364.0,39362.0,0.372936]
[1646428716592,0.003,39364.0,39363.0,0.15461724]
[1646428716887,0.003,39364.0,39363.0,0.52755324]
[1646428717086,0.003,39364.0,39363.0,0.57755324]
[1646428717734,0.31233954,39368.0,39363.0,0.422936]
[1646428717936,0.31233954,39365.0,39362.0,0.002]
[1646428718135,0.66373687,39367.0,39362.0,0.002]
[1646428718136,0.73667287,39364.0,39362.0,0.002]
[1646428718338,0.36373687,39363.0,39362.0,0.002]
[1646428718536,0.73667287,39363.0,39362.0,0.002]
[1646428718938,0.02526,39362.0,39350.0,0.357047]
[1646428719143,0.02526,39362.0,39347.0,0.4479]
[1646428719144,0.02526,39358.0,39347.0,0.4479]
[1646428719341,0.33762578,39358.0,39347.0,0.4479]
[1646428719539,0.372936,39356.0,39347.0,0.4479]
[1646428719740,0.31236578,39356.0,39345.0,1.4737]
[1646428719939,0.47659062,39356.0,39345.0,0.64220459]
[1646428720140,0.31349362,39349.0,39345.0,0.64220459]
[1646428720341,0.372936,39351.0,39349.0,0.24254757]
[1646428720540,0.372936,39350.0,39349.0,0.24254757]
[1646428720842,0.372936,39350.0,39349.0,0.29254757]
[1646428721244,0.63325263,39350.0,39349.0,0.29254757]
[1646428721504,0.372936,39350.0,39349.0,0.29254757]
[1646428721708,0.63325263,39350.0,39349.0,0.29254757]
[1646428721906,0.26031663,39350.0,39349.0,0.29254757]
[1646428722104,0.26031663,39351.0,39349.0,0.29254757]
[1646428722504,0.372936,39350.0,39349.0,0.24254757]
[1646428722704,0.63325263,39350.0,39349.0,0.24254757]
[1646428723507,0.372936,39350.0,39349.0,0.24254757]
[1646428724107,0.65604291,39350.0,39349.0,0.24254757]
[1646428724311,0.71772162,39350.0,39349.0,0.24254757]
[1646428724511,0.35,39348.0,39343.0,0.001]
[1646428724712,0.12052274,39346.0,39337.0,0.002]
[1646428724907,0.26034804,39342.0,39337.0,0.002]
[1646428725157,0.26034804,39340.0,39337.0,0.002]
[1646428725356,0.446536,39340.0,39337.0,0.002]
[1646428725959,0.81101808,39340.0,39337.0,0.002]
[1646428726460,0.372936,39339.0,39337.0,0.002]
[1646428726759,0.419636,39339.0,39337.0,0.002]
[1646428726962,0.419636,39339.0,39337.0,0.00173]
[1646428727361,0.372936,39338.0,39337.0,0.00173]
[1646428728662,0.63286626,39338.0,39337.0,0.00173]
[1646428729787,0.68286626,39338.0,39337.0,0.00052994]
[1646428730087,0.422936,39338.0,39337.0,0.00052994]
[1646428731890,0.422936,39338.0,39329.0,0.002]
[1646428731891,1.772936,39337.0,39329.0,0.002]
[1646428732102,0.13078853,39334.0,39329.0,0.002]
[1646428732291,0.373135,39335.0,39329.0,0.002]
[1646428732292,1.23583659,39335.0,39329.0,0.002]
[1646428732662,1.23583659,39335.0,39286.0,0.20780674]
[1646428732663,0.053,39295.0,39286.0,0.20780674]
[1646428732859,0.053,39295.0,39278.0,0.95270174]
[1646428732860,0.02800047,39291.0,39278.0,0.95270174]
[1646428733058,0.02800047,39287.0,39278.0,0.95270174]
[1646428733260,0.02800047,39287.0,39278.0,0.93837174]
[1646428733261,2.0365,39282.0,39278.0,0.93837174]
[1646428733557,2.0365,39282.0,39262.0,5.62584649]
[1646428733558,0.01537984,39278.0,39262.0,5.41749194]
[1646428733758,6.62e-06,39277.0,39262.0,5.41749194]
[1646428733956,0.01381841,39277.0,39271.0,1.4]
[1646428734161,0.0967,39276.0,39271.0,0.23229795]
[1646428734357,0.01590482,39275.0,39271.0,0.23229795]
[1646428734558,5.58e-06,39281.0,39272.0,0.15363685]
[1646428734760,5.58e-06,39281.0,39277.0,0.3]
[1646428734761,0.06372691,39281.0,39277.0,0.3]
[1646428734958,0.0467,39280.0,39279.0,0.3]
[1646428735258,1.07e-05,39288.0,39284.0,0.3]
[1646428735458,1.07e-05,39288.0,39287.0,0.45]
[1646428735459,0.5,39288.0,39287.0,0.45]
[1646428735657,9.44e-06,39291.0,39290.0,0.3]
[1646428735856,9.44e-06,39291.0,39290.0,0.45]
[1646428736256,0.061915,39295.0,39291.0,0.00099056]
[1646428736497,0.5,39293.0,39292.0,0.5293205]
[1646428736696,0.053,39295.0,39292.0,0.5293205]
[1646428736895,0.053,39295.0,39294.0,0.15]
[1646428737094,0.053,39295.0,39293.0,0.15603664]
[1646428737302,0.053,39295.0,39294.0,0.15]
[1646428737594,0.01429144,39305.0,39294.0,0.15]
[1646428737595,0.46599285,39305.0,39294.0,0.15]
[1646428737797,0.008915,39299.0,39298.0,0.3]
[1646428738098,0.013915,39301.0,39298.0,0.54020394]
[1646428738400,0.013915,39301.0,39300.0,0.15]
[1646428738597,0.013915,39301.0,39300.0,0.41844456]
[1646428738798,0.90104561,39304.0,39300.0,0.1967]
[1646428738997,0.90104561,39304.0,39301.0,0.15123606]
[1646428739195,0.90104561,39304.0,39303.0,0.6]
[1646428739395,0.90104561,39304.0,39303.0,0.6467]
[1646428739596,0.90104561,39304.0,39303.0,0.7967]
[1646428739799,0.90104561,39304.0,39302.0,0.25429728]
[1646428739800,0.90512561,39304.0,39302.0,0.42561365]
[1646428739996,0.90512561,39304.0,39302.0,0.15903436]
[1646428740239,0.013,39303.0,39302.0,0.15903436]
[1646428740634,0.01702,39303.0,39300.0,0.2]
[1646428740832,0.01702,39303.0,39301.0,0.26850839]
[1646428741434,0.013,39303.0,39301.0,0.0467]
[1646428741633,0.0169,39303.0,39297.0,0.001]
[1646428741837,0.063685,39302.0,39297.0,0.001]
[1646428742032,0.3,39301.0,39297.0,0.001]
[1646428742233,0.063685,39302.0,39296.0,0.001]
[1646428742436,0.063685,39302.0,39291.0,0.24945973]
[1646428742632,0.015571,39295.0,39292.0,0.46742682]
[1646428742833,0.313,39303.0,39292.0,0.46742682]
[1646428742834,0.376677,39303.0,39292.0,0.46742682]
[1646428743134,0.013,39303.0,39292.0,0.46742682]
[1646428743333,0.80105061,39302.0,39292.0,0.51742682]
[1646428743733,0.80105061,39302.0,39292.0,0.35656966]
[1646428744004,0.80105061,39302.0,39301.0,0.29697406]
[1646428744198,0.80105061,39302.0,39301.0,0.53681161]
[1646428744598,0.80501061,39302.0,39301.0,0.23983755]
[1646428744795,0.80105061,39302.0,39301.0,0.38725676]
[1646428745002,0.55005061,39302.0,39301.0,0.38725676]
[1646428745196,1.80799285,39302.0,39301.0,0.42895676]
[1646428745997,1.80409285,39302.0,39301.0,0.42895676]
[1646428746204,1.80805285,39302.0,39301.0,0.80210576]
[1646428746401,1.18103173,39302.0,39301.0,1.69034465]
[1646428746598,0.003,39308.0,39301.0,1.71560465]
[1646428746800,0.0001,39308.0,39307.0,0.91349889]
[1646428746999,0.20451502,39316.0,39308.0,1.4]
[1646428747200,0.20451502,39316.0,39308.0,1.83824903]
[1646428747402,0.20451502,39316.0,39313.0,0.2603675]
[1646428747640,0.38904885,39311.0,39309.0,0.21225712]
[1646428747836,0.38904885,39311.0,39310.0,0.05]
[1646428748037,0.38904885,39311.0,39310.0,0.0967]
[1646428748440,0.39306885,39311.0,39310.0,0.0467]
[1646428748840,0.38904885,39311.0,39310.0,0.0467]
[1646428749440,0.38904885,39311.0,39310.0,0.41378463]
[1646428749838,0.38904885,39311.0,39309.0,0.23313229]
[1646428750042,0.38904885,39311.0,39310.0,0.0467]
[1646428750242,0.38904885,39311.0,39309.0,0.20903076]
[1646428750438,0.38904885,39311.0,39310.0,0.03218559]
[1646428750638,0.38904885,39311.0,39310.0,0.0467]
[1646428751039,0.18904885,39311.0,39310.0,0.0467]
[1646428751488,0.18904885,39311.0,39310.0,0.42121659]
[1646428751687,0.18904885,39311.0,39310.0,1.37005028]
[1646428751888,8.85e-06,39311.0,39310.0,0.77238469]
[1646428752288,8.85e-06,39311.0,39310.0,0.82238469]
[1646428752687,8.85e-06,39311.0,39310.0,0.97238469]
[1646428752891,8.85e-06,39311.0,39310.0,1.73938469]
[1646428753589,8.85e-06,39311.0,39310.0,2.73938469]
[1646428753789,8.85e-06,39311.0,39310.0,3.26493369]
[1646428753991,0.01142291,39329.0,39313.0,0.57568469]
[1646428754190,2.291e-05,39329.0,39324.0,0.57568469]
[1646428754392,0.00171258,39330.0,39326.0,0.57568469]
[1646428754591,0.00171258,39330.0,39329.0,0.24701904]
[1646428754795,0.01478088,39329.0,39321.0,0.3838]
[1646428754993,0.01478088,39329.0,39324.0,0.0467]
[1646428755636,0.01478088,39329.0,39325.0,1.20979854]
[1646428755836,0.01478088,39329.0,39326.0,0.0467]
[1646428756437,0.01478088,39329.0,39326.0,0.824]
[1646428757738,0.01478088,39329.0,39327.0,0.02526]
[1646428757943,0.01478088,39329.0,39328.0,0.84926]
[1646428758339,0.01393753,39339.0,39330.0,2.22558742]
[1646428758538,0.01587058,39337.0,39330.0,2.27228742]
[1646428758739,0.01328159,39336.0,39330.0,2.27228742]
[1646428759025,0.01016679,39335.0,39330.0,2.27228742]
[1646428759223,0.01589317,39333.0,39331.0,0.12207415]
[1646428759423,0.00466942,39340.0,39332.0,0.0467]
[1646428759823,0.1,39345.0,39330.0,1.6097002]
[1646428760030,0.00466942,39346.0,39331.0,1.31529182]
[1646428760228,0.2596666,39351.0,39331.0,1.31529182]
[1646428760229,0.063598,39351.0,39339.0,0.26673919]
[1646428760424,0.063598,39351.0,39342.0,0.02526]
[1646428760630,2.96757313,39355.0,39343.0,0.0467]
[1646428760631,2.75983985,39355.0,39343.0,0.0467]
[1646428760824,0.85,39354.0,39343.0,0.4538491]
[1646428761024,0.85,39354.0,39344.0,0.0467]
[1646428761623,0.85,39354.0,39340.0,0.16728842]
[1646428761823,1.15,39354.0,39341.0,0.0467]
[1646428762223,0.063597,39351.0,39341.0,0.0467]
[1646428762424,0.19080603,39351.0,39341.0,0.0467]
[1646428762642,1.40930988,39354.0,39341.0,0.0467]
[1646428763250,0.063604,39350.0,39341.0,0.0467]
[1646428763446,1.14080603,39354.0,39341.0,0.0467]
[1646428763646,0.84080603,39354.0,39347.0,0.15229451]
[1646428764048,0.84365955,39354.0,39347.0,0.15135731]
[1646428764246,0.84365955,39354.0,39345.0,0.0467]
[1646428764247,0.84365955,39354.0,39345.0,0.04663237]
[1646428764447,0.063595,39353.0,39345.0,0.04663237]
[1646428765451,0.27132828,39353.0,39345.0,0.04663237]
[1646428766150,0.13492828,39353.0,39345.0,0.04663237]
[1646428766393,0.0636,39353.0,39345.0,0.04663237]
[1646428766589,0.127212,39350.0,39340.0,0.005]
[1646428766794,0.02526,39346.0,39340.0,0.005]
[1646428767188,0.06362,39343.0,39331.0,0.2405]